{"text_format":"3","workbook":"xlsx","n_sheets":2,"sheets":["汇总排序 ","Sheet1"],"not_rendered":{"defined_names":3},"read":"whole","date_system":"1900"}

{"sheet":"汇总排序 ","index":0,"n_rows":111,"n_cols":10,"rows_kept":111,"merged":[[0,0,0,9],[2,0,2,1]]}
["2020年顺义区专利促进与保护项目申报情况统计表"]
["序号","企业名称"," 1.国内/外专利资助（官费50%/件）","2.获得确定、认定及贯标（万元）","3.专利质押贷款（万元）","4.专利服务机构（万元）","5.产业联盟（服务平台）牵头企业","6.专利侵权纠纷（万元）","7.购买知识产权服务（万元）","总计(万元)"]
["合计",null,{"$f":"SUM(C4:C254)","v":25.9545},{"$f":"SUM(D4:D254)","v":560},{"$f":"SUM(E4:E254)","v":28.5459},36,0,11.415,35.46,{"$f":"SUM(C3:I3)","v":697.3754}]
[1,"北京世纪永峰防水材料有限公司",0,10,{"$nulls":5},10]
[2,"北京健安喜科技有限公司",0,10,{"$nulls":5},10]
[3,"北京市跃畅金属门窗有限公司",0.035,10,{"$nulls":5},10.035]
[4,"宠米（北京）科技有限公司",0,10,{"$nulls":5},10]
[5,"北京福道威光仪器技术有限公司",0,10,{"$nulls":5},10]
[6,"北京瀚林源科技有限公司",0,10,{"$nulls":5},10]
[7,"北京珠峰德信制冷工程有限公司",0,10,{"$nulls":5},10]
[8,"北京首都机场动力能源有限公司",0.1,{"$nulls":6},0.1]
[9,"中国民航信息网络股份有限公司",1.6,20,{"$nulls":5},21.6]
[10,"北京泓慧国际能源技术发展有限公司",0.2455,{"$nulls":6},0.2455]
[11,"北京零微科技有限公司",0.4,{"$nulls":6},0.4]
[12,"北京特思迪设备制造有限公司",0.035,{"$nulls":6},0.035]
[13,"宝枫生物科技（北京）有限公司",0.07,{"$nulls":6},0.07]
[14,"北京康仁堂药业有限公司",0.1,{"$nulls":6},0.1]
[15,"北京天树导视科技有限公司",0.1,{"$nulls":6},0.1]
[16,"北京金城泰尔制药有限公司",0.3,{"$nulls":6},0.3]
[17,"北京赛特明强医药科技有限公司",0.1,{"$nulls":6},0.1]
[18,"北京赛特超润界面科技有限公司",0.5057,{"$nulls":6},0.5057]
[19,"北京赛特石墨烯科技有限公司",0.0745,{"$nulls":6},0.0745]
[20,"北京嘉景生物科技有限责任公司",0.372,{"$nulls":6},0.372]
[21,"北京东博牙科手机有限公司",0.1,{"$nulls":6},0.1]
[22,"北京聚利科技有限公司",0.4,{"$nulls":6},0.4]
[23,"北京华泰诺安技术有限公司",0.0447,{"$nulls":6},0.0447]
[24,"北京蓝色星语科技有限公司",0.0722,{"$nulls":6},0.0722]
[25,"北京华泰诺安探测技术有限公司",0.4,{"$nulls":6},0.4]
[26,"北京北广科技股份有限公司",0.3,{"$nulls":6},0.3]
[27,"北京数码视讯软件技术发展有限公司",0.5,{"$nulls":6},0.5]
[28,"鼎点视讯科技有限公司",0.0745,{"$nulls":6},0.0745]
[29,"北京图森未来科技有限公司",1.338,{"$nulls":6},1.338]
[30,"北京汽车研究总院有限公司",0.81,{"$nulls":6},0.81]
[31,"北京理工华创电动车技术有限公司",0.2,{"$nulls":6},0.2]
[32,"北京连山科技股份有限公司",0.81,{"$nulls":6},0.81]
[33,"北京连山时代科技有限公司",0.105,{"$nulls":6},0.105]
[34,"北京东峰兴达耐火材料有限公司",0.07,{"$nulls":6},{"$f":"SUM(C37:I37)","v":0.07}]
[35,"中航复材（北京）科技有限公司",0.2,{"$nulls":6},0.2]
[36,"北京赛腾标识系统股份公司",0.0372,{"$nulls":6},0.0372]
[37,"北京现代汽车有限公司",0.2,{"$nulls":6},0.2]
[38,"北京韩美药品有限公司",0.9335,{"$nulls":6},0.9335]
[39,"北京航空工艺地毯有限公司",0.2,{"$nulls":6},0.2]
[40,"江河创建集团股份有限公司",0.2,{"$nulls":6},0.2]
[41,"北京科荣达航空设备科技有限公司",0.0372,{"$nulls":6},0.0372]
[42,"北京爱克瑞特金刚石工具有限公司",0.035,{"$nulls":6},0.035]
[43,"北京汽车集团有限公司",2.4,{"$nulls":6},2.4]
[44,"北京慧怡科技有限责任公司",0.1,{"$nulls":6},0.1]
[45,"北京雅士科莱恩石油化工有限公司",0.194,{"$nulls":6},0.194]
[46,"北京首钢冷轧薄板有限公司",0.3872,{"$nulls":6},0.3872]
[47,"北京杜普信科技有限公司",0.035,{"$nulls":6},0.035]
[48,"北京天地玛珂电液控制系统有限公司",2.1,{"$nulls":6},2.1]
[49,"北京东方雨虹防水技术股份有限公司",0.0867,{"$nulls":6},0.0867]
[50,"北京汽车集团越野车有限公司",4.5525,{"$nulls":6},4.5525]
[51,"北京迈迪顶峰医疗科技股份有限公司",0.3,{"$nulls":6},0.3]
[52,"北京金崇光药业有限公司",0.1,{"$nulls":6},0.1]
[53,"北京白帽汇科技有限公司",0.0372,{"$nulls":6},0.0372]
[54,"北京碧海怡景园林绿化有限公司",0.4,{"$nulls":6},0.4]
[55,"北京艾肯拓科技有限公司",0.3,{"$nulls":6},0.3]
[56,"京磁材料科技股份有限公司",1.1,{"$nulls":6},1.1]
[57,"北京家禽育种有限公司",0,10,{"$nulls":5},10]
[58,"北京科净源科技股份有限公司",0,null,19.3178,{"$nulls":4},19.3178]
[59,"优美特（北京）环境材料科技股份公司",0.5,10,9.2281,{"$nulls":4},19.7281]
[60,"北京合清环保技术有限公司",0,10,{"$nulls":5},10]
[61,"北京梦天门科技股份有限公司",0.484,10,{"$nulls":5},10.484]
[62,"北京稳固得电子有限公司",0,10,{"$nulls":5},10]
[63,"北京百迈客生物科技有限公司",0,10,{"$nulls":5},10]
[64,"罗森伯格亚太电子有限公司",0,10,{"$nulls":5},10]
[65,"北京杰迈科技股份有限公司",0,10,{"$nulls":5},10]
[66,"北京新能正源智能装备有限公司",0,10,{"$nulls":5},{"$f":"SUM(C69:I69)","v":10}]
[67,"北京吉盛机电设备有限公司",0,10,{"$nulls":5},10]
[68,"中灌顺鑫华霖科技发展有限公司",0,10,{"$nulls":5},10]
[69,"北京东方广厦模块化房屋有限公司",0,10,{"$nulls":5},10]
[70,"北京康思润业生物技术有限公司",0,10,{"$nulls":5},10]
[71,"北京地大彩印有限公司",0,10,{"$nulls":5},10]
[72,"北京益汇达清水建筑工程有限公司",0,10,{"$nulls":5},10]
[73,"北京威廉顺塑胶制品有限公司",0,10,{"$nulls":5},10]
[74,"北京众绘虚拟现实技术研究院有限公司",0.1422,10,{"$nulls":5},10.1422]
[75,"北京华铁时代建设发展有限公司",0,10,{"$nulls":5},10]
[76,"北京青乔园林绿化有限公司",0,10,{"$nulls":5},10]
[77,"电王精密电器（北京）有限公司",0,10,{"$nulls":5},10]
[78,"北京时代中衡科技有限公司",0,10,{"$nulls":5},10]
[79,"北京首创环境科技有限公司",0,10,{"$nulls":5},10]
[80,"北京潮白环保科技股份有限公司",0,10,{"$nulls":5},10]
[81,"北京顺特科技有限公司",0,10,{"$nulls":5},10]
[82,"北京嘉诚兴业工贸股份有限公司",0,10,{"$nulls":5},10]
[83,"北京福通互联科技集团有限公司",0,10,{"$nulls":5},10]
[84,"亿利洁能科技有限公司",0,10,{"$nulls":5},10]
[85,"北京市安宜卫生用品有限公司",0,10,{"$nulls":5},10]
[86,"北京奥德威特电力科技股份有限公司",0,10,{"$nulls":5},10]
[87,"北京豪迈生物工程股份有限公司",0,10,{"$nulls":5},10]
[88,"北京中瑞和电气有限公司",0,10,{"$nulls":5},10]
[89,"北京科荣达航空科技股份有限公司",0.035,10,{"$nulls":5},10.035]
[90,"北京诚济制药股份有限公司",0,10,{"$nulls":5},10]
[91,"北京一鑫印务有限责任公司",0,10,{"$nulls":5},10]
[92,"北京星箭长空测控技术股份有限公司",0,10,{"$nulls":5},10]
[93,"北京青乔园林绿化有限公司",0,10,{"$nulls":5},10]
[94,"北京潮白环保科技股份有限公司",0,10,{"$nulls":5},10]
[95,"北京宏勤石油助剂有限公司",0,10,{"$nulls":5},10]
[96,"北京博远寰宇电子科技有限公司",0,10,{"$nulls":5},10]
[97,"曲美家居集团股份有限公司",0,20,{"$nulls":5},20]
[98,"有研半导体硅材料股份公司",0.2607,20,{"$nulls":5},20.2607]
[99,"中科星图股份有限公司",0.6,20,{"$nulls":5},20.6]
[100,"北京江河幕墙系统工程有限公司",0.7,20,{"$nulls":3},11.415,22.5,54.615]
[101,"北京万集智能网联技术有限公司",0,{"$nulls":5},7.5,7.5]
[102,"碎得机械（北京）有限公司",0,{"$nulls":5},3,3]
[103,"北京乾和水环境与水生态监测科技有限公司",0,{"$nulls":5},0.76,0.76]
[104,"北京联合天一环境科技有限公司",0.035,{"$nulls":5},1.7,1.735]
[105,"北京力量专利代理事务所（特殊普通合伙）",0,null,null,10,{"$nulls":3},10]
[106,"北京润捷智诚知识产权代理事务所（普通合伙）",0,null,null,10,{"$nulls":3},10]
[107,"北京青松知识产权代理事务所（特殊普通合伙）",0,null,null,8,{"$nulls":3},8]
[108,"北京卓特专利代理事务所（普通合伙）",0,null,null,8,{"$nulls":3},8]

{"sheet":"Sheet1","index":1,"n_rows":98,"n_cols":6,"rows_kept":98,"hidden":true,"merged":[[5,0,7,0],[5,1,7,1],[5,2,7,2],[5,5,7,5],[9,0,11,0],[9,1,11,1],[9,2,11,2],[9,5,11,5],[12,0,13,0],[12,1,13,1],[12,2,13,2],[12,5,13,5],[14,0,15,0],[14,1,15,1],[14,2,15,2],[14,5,15,5],[17,0,18,0],[17,1,18,1],[17,2,18,2],[17,5,18,5],[19,0,21,0],[19,1,21,1],[19,2,21,2],[19,5,21,5],[22,0,23,0],[22,1,23,1],[22,2,23,2],[22,3,23,3],[22,4,23,4],[22,5,23,5],[25,0,26,0],[25,1,26,1],[25,2,26,2],[25,5,26,5],[35,0,36,0],[35,1,36,1],[35,2,36,2],[35,5,36,5],[42,0,43,0],[42,1,43,1],[42,2,43,2],[42,5,43,5],[44,0,45,0],[44,1,45,1],[44,2,45,2],[44,5,45,5],[47,0,48,0],[47,1,48,1],[47,2,48,2],[47,5,48,5],[64,0,65,0],[64,1,65,1],[64,2,65,2],[64,5,65,5],[74,0,75,0],[74,1,75,1],[74,2,75,2],[74,3,75,3],[74,5,75,5]]}
["序号","企业名称","拟支持项目及金额","反馈单位","反馈意见","建议"]
[1,"北京金中洲建筑材料有限公司","专利授权（实用新型12件，1.2万元）","区人保局","社保欠费（2020年2月）"]
[2,"北京雅昌艺术印刷有限公司","专利授权（发明4件，外观设计1件，8.1万元）","区人保局","社保欠费（2020年5月至2020年9月）"]
[3,"橙果信息技术有限公司","专利授权（发明2件，实用新型2件，外观设计8件，8.1万元）","区人保局","社保欠费（2020年1月）"]
[4,"北京莲顺农业开发有限公司","专利授权（实用新型6件，0.6万元）","区人保局","社保欠费（2014年5月至2017年1月）"]
[5,"北京艺威木业有限责任公司","专利授权（发明2件，4万元）","1.区人保局","1.社保欠费（2019年10月-2020年9月）"]
[{"$nulls":3},"2.区税务局","2.欠缴税费11880.52元。"]
[{"$nulls":3},"3.信用中国查询结果","3.经查询，该企业在2019年9月30至12月8日期间，被列入失信被执行人3次。"]
[6,"北京牛栏山庄饮品有限公司","专利授权（外观设计1件，0.1万元）","区人保局","未参加社会保险"]
[7,"北京长城华冠汽车科技股份有限公司","专利授权（发明90件，100万元）；认定及贯标（国家知识产权优势企业），20万元，共计120万元。","1.区税务局","1.2019年10月，因逾期未申报，违反《中华人民共和国税收征收管理法》，处罚100元；2019年11月，因逾期未申报，违反《中华人民共和国税收征收管理法》，处罚50元；2020年1月，因逾期未申报，违反《中华人民共和国税收征收管理法》，处罚200元。"]
[{"$nulls":3},"2.区人保局","2.该企业因未按规定报送材料，经劳动保障行政部门责令改正拒不改正，于2020年4月1日被处以罚款20000元，该单位未按规定期限缴纳罚款。目前，我行政机关已依照法律程序向顺义区人民法院提起强制执行申请。"]
[{"$nulls":3},"3.科创功能区管委会","3.经查询，该企业在劳动关系领域存在信用不良记录，被列为失信被执行人。"]
[8,"北京华特时代电动汽车技术有限公司","专利授权（发明4件，8万元）","1. 区人保局","1.该企业因未按规定报送材料，经劳动保障行政部门责令改正拒不改正，于2020年7月29日被处以罚款20000元，该单位未按规定期限缴纳罚款。目前，我行政机关依照法律程序将向顺义区人民法院提起强制执行申请。"]
[{"$nulls":3},"2. 科创功能区管委会","2.经查询，该企业劳动关系领域存在信用不良记录，被列为失信被执行人。"]
[9,"北京华璞钻石有限责任公司","专利授权（实用新型8件，0.8万元）","1. 区人保局","1.该企业因违法延长劳动者工作时间的违法行为，于2019年7月5日被处以罚款34000元。该单位积极整改，按期缴纳了罚款。"]
[{"$nulls":3},"2. 区税务局","2.欠缴税费97.13元。"]
[10,"北京阿尔法针织有限公司","专利授权（实用新型5件，0.5万元）","区应急管理局","2020年8月，该单位未将事故隐患排查治理情况如实记录或者未向从业人员通报，我局给予该单位1.5万元罚款的一般行政处罚。"]
[11,"北京韩美药品有限公司","专利授权（发明2件，外观设计10件，国外发明7件，46万元）","1.区应急管理局","1.2020年3月，该单位未在有较大危险因素的生产经营场所和有关设施、设备上设置明显的安全警示标志，我局给予该单位2.5万元罚款的一般行政处罚。"]
[{"$nulls":3},"2.区市场监管局","2.2020年8月6日，未经审查，广告主擅自发布医疗、药品、医疗器械、农药、兽药和保健食品广告，以及法律、行政法规规定应当进行审查的其他广告，罚款200000元。"]
[12,"北京澳玛特家具有限公司","专利授权（实用新型1件，0.1万元）","1. 区应急管理局","1.2020年5月，该单位未对按照规定对从业人员、派遣劳动者、实习学生进行安全生产教育和培训，我局给予该单位800元罚款的简易处罚；"]
[{"$nulls":3},"2. 区税务局","2.2020年10月，因逾期未申报，违反《中华人民共和国税收征收管理法》，处罚1000元。"]
[{"$nulls":3},"3. 信用中国查询结果","3.经查询，该企业未如实记录生活垃圾排放情况的行为违反了《北京市生活垃圾管理条例》第三十八条第二款的规定，2020年11月29日，顺义区后沙峪镇人民政府作出罚款0.1万元的行政处罚。"]
[13,"北京北宇星通科技有限公司","专利授权（实用新型9件，0.9万元）","区应急管理局","2020年9月，该单位未为从业人员提供符合国家标准或者行业标准的劳动防护用品，我局给予该单位1万元罚款的一般行政处罚。"]
[]
[14,"北京华泰诺安探测技术有限公司","专利授权（发明3件，实用新型2件，外观设计1件，6.3万元）","区应急管理局","2020年4月，该单位未对按照规定对从业人员、派遣劳动者、实习学生进行安全生产教育和培训，我局给予该单位800元罚款的简易处罚。"]
[15,"北京军瑞通达工贸有限公司","专利授权（实用新型8件，0.8万元）","1. 区应急管理局","1.2020年4月，该单位未建立健全特种作业人员档案，我局给予该单位警告并处5000元罚款的一般行政处罚。"]
[{"$nulls":3},"2. 信用中国查询结果","2.经查询，该企业因有履行能力而拒不履行生效法律文书确定义务，北京市海淀区人民法院于2020年7月21日将其列为失信被执行人。"]
[16,"北京蓝盾金属门窗厂","专利授权（实用新型8件，0.8万元）","区应急管理局","2020年8月，该单位特种作业人员未取得特种作业操作资格证书、上岗作业，我局给予该单位1万元罚款的一般行政处罚。"]
[17,"北京迈迪顶峰医疗科技股份有限公司","专利授权（发明5件，实用新型7件，外观设计2件，国外发明4件，30.9万元）","区应急管理局","2020年6月，该单位未如实记录安全生产教育和培训情况，我局给予该单位900元罚款的简易处罚。"]
[18,"北京市安宜卫生用品有限公司","专利授权（实用新型5件，0.5万元）","区应急管理局","2020年7月，该单位特种作业人员未取得特种作业操作资格证书、上岗作业，我局给予该单位1万元罚款的一般行政处罚。"]
[19,"优美特（北京）环境材料科技股份公司","专利授权（发明3件，6万元）","区应急管理局","该单位未对按照规定对从业人员、派遣劳动者、实习学生进行安全生产教育和培训，我局给予该单位900元罚款的简易处罚。"]
[20,"北京紫云英保健品开发有限责任公司","专利授权（实用新型4件，0.4万元）","区应急管理局","2020年11月，该单位未在有较大危险因素的生产经营场所和有关设施、设备上设置明显的安全警示标志，我局给予该单位800元罚款的简易处罚。"]
[21,"北京富士特锅炉有限公司","专利授权（实用新型6件，0.6万元）","区市场监管局","2020年8月21日，因发布以虚假或者引人误解的内容欺骗、误导消费者的其他情形的虚假广告，罚款15000元。"]
[22,"北京康思润业生物技术有限公司","专利授权（发明1件，实用新型7件，2.7万元）","区市场监管局","2020年2月20日，因生产不符合经注册的产品技术要求的医疗器械，违反了《医疗器械监督管理条例》第二十四条第一款的规定，罚款176058.2元。"]
[23,"北京空港北光仪表有限公司","专利授权（实用新型3件，0.3万元）","区市场监管局","2020年4月13日，销售者没有建立并执行进货检查验收制度，并建立产品进货台账受到当场处罚。"]
[24,"北京城建北方集团有限公司","专利授权（发明1件，实用新型14件，3.4万元）","1.区市场监管局","1.2020年3月25日，贮存、运输和装卸食品的容器、工具和设备应当安全、无害，保持清洁，防止食品污染，并符合保证食品安全所需的温度等特殊要求，不得将食品与有毒、有害物品一同运输罚款受到当场处罚。"]
[{"$nulls":3},"2.信用中国查询结果","2.经查询，2020年7月16日，该企业违反《危险性较大的分部分项工程安全管理规定》第三十五条第(三)项之规定，北京市住建委作出“责令立即改正罚款1万元”的行政处罚；2020年9月20日，该企业未经批准进行夜间施工，丰台区人民政府方庄地区办事处作出“责令改正，罚款1万元”的行政处罚；"]
[25,"北京立全宏达生物科技有限公司","专利授权（实用新型7件，0.7万元）","区税务局","2020年4月，因逾期未申报，违反《中华人民共和国税收征收管理法》，处罚1000元。"]
[26,"北京鑫翔源长顺润滑油有限责任公司","专利授权（发明2件，4万元）","区税务局","2020年11月，因逾期未申报，违反《中华人民共和国税收征收管理法》，处罚100元."]
[27,"北京卓镭激光技术有限公司","专利授权（实用新型7件，0.7万元）","区税务局","2020年1月，因逾期未申报，违反《中华人民共和国税收征收管理法》，处罚200元。"]
[28,"北京欧菲堡酒庄有限公司","专利授权（实用新型5件，0.5万元）","区税务局","2020年2月，因逾期未申报，违反《中华人民共和国税收征收管理法》，处罚100元"]
[29,"北京路德永泰环保科技有限公司","认定及贯标（知识产权试点单位），10万元。","区税务局","2020年1月，逾期未申报，违反《中华人民共和国税收征收管理法》，企业还未处理违法行为。"]
[30,"北京星箭长空测控技术股份有限公司","专利授权（发明2件，4万元）","1.区税务局","1.2019年10月，因逾期未申报，违反《中华人民共和国税收征收管理法》，处罚50元；欠缴税费306971.87元。"]
[{"$nulls":3},"2.信用中国查询结果","2.经查询，该企业在劳动关系领域存在信用不良记录，于2020年9月28日被列为失信被执行人。"]
[31,"中国核工业二三建设有限公司","专利授权（发明12件，实用新型25件，26.5万元）","1.区税务局","1.2019年11月，因逾期未申报，违反《中华人民共和国税收征收管理法》，处罚200元。"]
[{"$nulls":3},"2.信用中国查询结果","2.经查询，2020年3月15日,由该单位施工的济南市商河县市民服务中心项目发生一起高处坠落事故,造成1人死亡；2020年7月6日，北京市住房和城乡建设委员作出“暂扣或者吊销许可证、暂扣或者吊销执照”的行政处罚。"]
[32,"北京市产品质量监督检验院","专利授权（发明1件，实用新型4件，外观设计1件，2.5万元）","区税务局","2019年12月，因逾期未申报，违反《中华人民共和国税收征收管理法》，处罚200元。"]
[33,"北京永光高特微电机有限公司","专利授权（实用新型2件，0.2万元）","1. 区税务局","1.2020年4月，因逾期未申报，违反《中华人民共和国税收征收管理法》，处罚100元。"]
[{"$nulls":3},"2. 信用中国查询结果","2.经查询，该企业在生产过程中产生的含废乳化液废物(《国家危险废物名录》代码HW09编号900-006-09)等危险废物建有危险废物贮存场所,但部分危险废物混入非危险废物中贮存的行为，违反了《中华人民共和国固体废物污染环境防治法》第五十八条第三款的规定，2020年9月25日，区生态环境局作出罚款1万元的行政处罚。"]
[34,"北京天缘泽牧饲料有限公司","专利授权（实用新型3件，0.3万元）","区税务局","2020年5月，因逾期未申报，违反《中华人民共和国税收征收管理法》，处罚600元"]
[35,"北京百迈客生物科技有限公司","专利授权（发明3件，6万元）","区税务局","2019年11月因丢失发票，根据《中华人民共和国发票管理办法》，处罚180元。"]
[36,"北京百迈客云科技有限公司","专利授权（发明2件，4万元）","区税务局","2019年11月因丢失发票，根据《中华人民共和国发票管理办法》，处罚30元。"]
[37,"北京金城泰尔制药有限公司","专利授权（发明1件，2万元）","区税务局","2019年11月因丢失发票，根据《中华人民共和国发票管理办法》，处罚800元。"]
[38,"洋紫荆牙科器材（北京）有限公司","专利授权（实用新型12件，1.2万元）","区税务局","2020年4月，因逾期未申报，违反《中华人民共和国税收征收管理法》，处罚1000元。"]
[39,"北京中北博健科贸有限公司","专利授权（实用新型6件，0.6万元）","区税务局","2020年3月，因逾期未申报，违反《中华人民共和国税收征收管理法》，处罚1000元。"]
[40,"北京升华电梯集团有限公司","专利授权（国外发明1件，5万元）","区税务局","2019年11月，因逾期未申报，违反《中华人民共和国税收征收管理法》，处罚100元。"]
[41,"北京康仁堂药业有限公司","专利授权（发明1件，2万元）","区税务局","2020年1月，逾期未申报，违反《中华人民共和国税收征收管理法》，企业还未处理违法行为。"]
[42,"北京市晨峰龙汽车修理有限责任公司","专利授权（实用新型5件，0.5万元）","区税务局","2019年12月，因逾期未申报，违反《中华人民共和国税收征收管理法》，处罚1000元。"]
[43,"北京宏勤石油助剂有限公司","专利授权（实用新型6件，0.6万元）","区税务局","2019年12月，因逾期未申报，违反《中华人民共和国税收征收管理法》，处罚1000元；2020年1月，因逾期未申报，违反《中华人民共和国税收征收管理法》，处罚50元。"]
[44,"北京顺鑫天宇建设工程有限公司","专利授权（实用新型1件，0.1万元）","区税务局","欠缴税费900345.22元。"]
[45,"中灌顺鑫华霖科技发展有限公司","专利授权（实用新型1件，0.1万元）","区税务局","欠缴税费280177.55元。"]
[46,"北京福通互联科技集团有限公司","专利授权（实用新型1件，0.1万元）","区税务局","欠缴税费559.2元。"]
[47,"北京长城华冠汽车技术开发有限公司","专利授权（发明1件，实用新型276件，外观设计16件，31.2万元）","区税务局","欠缴税费2665806.96元。"]
[48,"北京牵手果蔬饮品股份有限公司","专利授权（实用新型4件，0.4万元）","区税务局","欠缴税费109979.64元。"]
[49,"北京鑫大禹水利建筑工程有限公司","专利授权（实用新型1件，0.1万元）","1. 区税务局","1.欠缴税费12980元。"]
[{"$nulls":3},"2. 信用中国查询结果","2.经查询，该企业施工过程中使用的管件未经监理单位审查的行为违反了《北京市建设工程质量条例》第四十条第一款的规定，2020年11月16日，丰台区水务局作出罚款3万元的行政处罚。"]
[50,"北京晶都诚厨房设备有限责任公司","专利授权（发明3件，6万元）","区税务局","税务登记未注册在顺义。"]
[51,"北京永茂建工机械制造有限公司","专利授权（实用新型3件，0.3万元）","科创功能区管委会","该企业已在2019年11月腾退。"]
[52,"北京东方雨虹防水工程有限公司","专利授权（发明4件，实用新型17件，外观设计1件，9.8万元）","信用中国","经查询，2020年10月30日，该公司有施工单位未采用密闭式防尘网遮盖建筑土方(工程渣土、建筑垃圾)的行为，昌平区天通苑北街道综合行政执法队作出罚款1万元的行政处罚；2020年7月1日 ，该公司使用不具备相应注册执业资格人员的行为，违反了《北京市建设工程质量条例》第八十一条第(一)项的规定，北京市住房和城乡建设委员会作出罚款4万元的行政处罚。"]
[53,"北京蓝星清洗有限公司","专利授权（发明2件，外观设计1件，4.1万元）","信用中国","经查询，2020年11月24日，该企业在本市使用的非道路移动机械未经信息编码登记的行为，违反了《北京市机动车和非道路移动机械排放污染防治条例》的规定，区生态环境局作出罚款0.5万元的行政处罚。"]
[54,"北京卓良模板有限公司","专利授权（发明1件，实用新型1件，2.8万元）","信用中国","经查询，该企业违反了《建筑起重机械安全监督管理规定》第二十九条第（三）项的规定，2020年10月12日，深圳市宝岗区住房和建设局作出罚款0.5万元的行政处罚。"]
[55,"北京地大彩印有限公司","专利授权（发明1件，实用新型4件，2.4万元）","信用中国","经查询，该企业有刷胶工艺,刷胶过程中产生的含挥发性有机物废气,未安装含挥发性有机物废气净化处理设施,产生的含挥发性有机物废气的行为，违反《中华人民共和国大气污染防治法》第四十五条的规定，2020年9月25日，区生态环境局作出罚款2万元的行政处罚。"]
[56,"北京飞机维修工程有限公司","专利授权（实用新型20件，2万元）","信用中国","经查询，该企业超过大气污染物排放标准排放大气污染物的行为，违反了《中华人民共和国大气污染防治法》第九十九条第二项的规定，2020年9月23日，市生态环境局作出责令改正、罚款31万元的行政处罚。"]
[57,"中国民航信息网络股份有限公司","专利授权（发明1件，2万元）","信用中国","经查询，该企业噪声限期治理未完成的行为，违反了《北京市环境噪声污染防治办法》第十条第一款的规定，2020年1月22日，东城区生态环境局作出罚款1.5万元的行政处罚。"]
[58,"北京建宏印刷有限公司","专利授权（实用新型15件，1.5万元）","信用中国","经查询，该企业对生产经营单位从业人员安全培训的时间少于《生产经营单位安全培训规定》或者有关标准的行为，违反了《安全生产培训管理办法》第十一条的规定，2020年9月3日，市应急管理局作出罚款1万元的行政处罚。"]
[{"$nulls":4},"经查询，该企业人防工程未按照有关规定建设的行为违反了《中华人民共和国人民防空法》第二十二条的规定，2020年12月14日，顺义区人民防空办公室作出罚款2万元的行政处罚。"]
[59,"罗森伯格亚太电子有限公司","专利授权（实用新型7件，0.7万元）","信用中国","经查询，该企业暂时不利用或者不能利用的工业固体废物未建设贮存的设施、场所安全分类存放,或者未采取无害化处置措施的行为，违反了《中华人民共和国固体废物污染环境防治法》第六十八条第一款第二项和第二款的规定，2020年9月3日，市生态环境局作出罚款3万元的行政处罚。"]
[60,"北京天第食圣食品有限公司","专利授权（实用新型5件，0.5万元）","信用中国","经查询，该企业未建立安全生产事故隐患排查治理制度的行为，违反了《中华人民共和国安全生产法》第三十八条第一款的规定，2020年8月14日，区应急管理局作出罚款5万元的行政处罚。"]
[61,"北京奥格尼克生物技术有限公司","专利授权（实用新型3件，0.3万元）","信用中国","经查询，该企业主要加工有机肥,采用发酵工艺,该单位在破碎、原材料传输过程中有恶臭产生,未采取有效措施防止排放恶臭及的行为，违反了大气污染防治管理制度，2020年1月14日，区生态环境局作出罚款1万元的行政处罚；该企业加工有机肥,建有一灌装车间,车间内装有一套灌装设备,在成品灌装设备下料口处有粉尘产生,未安装粉尘收集处理设施的行为，涉嫌违反了大气污染防治管理制度，2020年1月14日，区生态环境局作出罚款1万元的行政处罚。"]
[62,"北京鑫航泰科技发展有限公司","专利授权（实用新型1件，0.1万元）","信用中国","经查询，该企业在生产过程中产生的废机油桶(《国家危险废物名录》代码:HW49 编号900-041-49)等危险废物,建有危险废物单独贮存场所,但产生的废机油桶等危险废物的容器未设置危险废物识别标志的行为，违反了《中华人民共和国固体废物污染环境防治法》第52条的规定，2020年1月10日，区生态环境局作出罚款1万元的行政处罚。"]
[63,"北京港源幕墙有限公司","专利授权（实用新型7件，外观设计1件，0.8万元）","信用中国","经查询，该企业在施工过程中存在28#屋面幕墙施工用工具式移动脚手架无护身栏的问题,违反了《中华人民共和国建筑法》第四十四条第一款的规定,2020年11月17日，北京市顺义区住房和城乡建设委员会作出罚款0.5万元的行政处罚；该企业违反了《大气污染防治法》一百二十一条的规定，2020年6月23日，宜宾市住房和城乡建设局作出罚款2万元的行政处罚。"]
[64,"中集冷云（北京）供应链管理有限公司","专利授权（发明1件，实用新型2件，2.2万元）","信用中国","经查询，该企业专业人员在运营中未携带专业资格证件的行为违反了《北京市道路运输条例》第十三条第(五)项的规定，2020年10月30日，大兴区交通局作出罚款0.02万元的行政处罚；该企业取得道路货物运输经营许可的道路货物运输经营者使用无道路运输证的车辆参加货物运输的行为违反了《道路货物运输及站场管理规定》第五十九条第一款的规定，2020年9月27日，大兴区交通局作出罚款0.31万元的行政处罚；该企业未按照规定报送《交通行业安全生产条件调查第二季度数据填报》等相关信息的行为违反了《北京市道路运输条例》第十三条第一款第(九)项的规定,2020年9月11日，顺义区交通局作出罚款0.02万元的行政处罚；"]
[65,"北京青乔园林绿化有限公司","专利授权（发明1件，实用新型2件，2.2万元）","信用中国","经查询，该企业1年内违法超限运输的货运车辆超过本单位货运车辆总数10%的行为违反了《公路安全保护条例》第六十六条的规定，2019年12月30日，顺义区交通局作出责令停产停业的行政处罚。"]
[66,"北京星光俊海汽车配件有限公司","专利授权（实用新型15件，1.5万元）","信用中国","经查询，该企业厂房内西侧3处室内消火栓接口处水带漏水的行为违反了《中华人民共和国消防法》第十六条第一款第二项的规定，2019年12月30日，顺义区消防救援支队作出罚款2.9万元的行政处罚。"]
[67,"北京优冷供应链管理有限公司","专利授权（实用新型12件，外观设计3件，1.5万元）","信用中国","经查询，该企业未将生活垃圾分别投入相应标识的收集容器的行为,违反了《北京市生活垃圾管理条例》第三十六条第一款第(三)项的规定，2020年6月2日，顺义区城市管理综合行政执法局作出罚款0.1万元的行政处罚。"]
[68,"北京北方融大游乐设备有限公司","专利授权（实用新型10件，1万元）","信用中国","经查询，该企业未将生活垃圾分别投入相应标识的收集容器的行为,违反了《北京市生活垃圾管理条例》第三十六条第一款第(三)项的规定，2020年11月12日，顺义区杨镇人民政府作出罚款0.3万元的行政处罚。"]
[69,"北京天辰乳业有限公司","专利授权（实用新型10件，1万元）","信用中国","经查询，该企业未建立生活垃圾管理台账的行为,违反了《北京市生活垃圾管理条例》第三十八条第二款的规定,2020年12月2日，顺义区杨镇人民政府作出罚款0.1万元的行政处罚；该企业于2020年2019年12月31日至2020年6月4日期间擅自超限行6次，违反了《中华人民共和国公路法》第五十条第一款的规定，北京市交通委员会作出罚款总计0.75万元的行政处罚；该企业在燃气供应与使用过程中从事其他危害公共安全和公共利益的活动的行为,违反了《北京市燃气管理条例》第二十八条第(八)项的规定，2019年12月31日，顺义区城市管理综合行政执法监察局作出罚款0.05万元的行政处罚。"]
[70,"北京武亿丰食品有限公司","专利授权（实用新型9件，0.9万元）","信用中国","经查询，该企业未按规定管护生活垃圾分类收集容器,垃圾桶破损,影响了市容环境,违反了《北京市生活垃圾管理条例》第三十六条第一款第(三)项的规定，2020年11月12日，顺义区李桥镇人民政府作出罚款0.3万元的行政处罚。"]
[71,"北京东方富昊新型建材有限公司","专利授权（实用新型3件，0.3万元）","信用中国","经查询，该企业其他垃圾桶内有易拉罐等可回收垃圾的行为,违反了《北京市生活垃圾管理条例》第三十六条第一款第(四)项的规定，2020年11月9日，顺义区赵全营镇人民政府作出罚款0.3万元的行政处罚。"]
[72,"北京巧力神金属结构有限公司","专利授权（实用新型3件，0.3万元）","信用中国","经查询，该企业消防水带口损坏,消防器材未保持完好有效的行为,违反了《中华人民共和国消防法》第十六条第一款第二项的规定，2020年9月29日，顺义区消防救援支队作出罚款1.6万元的行政处罚；该企业占用疏散通道的行为，违反了《中华人民共和国消防法》第十六条第一款第四项的规定，2020年9月29日，顺义区消防救援支队作出罚款2.9万元的行政处罚；该企业未按规定管护生活垃圾分类收集容器,垃圾桶破损的行为违反了《北京市生活垃圾管理条例》第三十六条第一款第(三)项的规定，2020年5月18日，顺义区城市管理综合行政执法局作出罚款0.3万元的行政处罚。"]
[73,"北京特思迪设备制造有限公司","专利授权（实用新型1件，0.1万元）","信用中国","经查询，该企业提供虚假经济普查资料的行为违反了《全国经济普查条例》第九条第二款的规定,2019年12月11日，顺义区统计局作出罚款0.2万元的行政处罚。"]
[74,"北京阿奇夏米尔工业电子有限公司","专利授权（实用新型1件，0.1万元）","信用中国","经查询，该企业使用排放不合格的非道路移动机械的行为违反了《中华人民共和国大气污染防治法》第五十一条第一款的规定和《中华人民共和国大气污染防治法》第一百一十四条第一款的规定（涉及2个案件）；在生产、液压设备维护、更换等过程中产生的废矿物油(《国家危险废物名录》代码:HW08 编号900-218-08)等危险废物,建有危险废物单独贮存场所,但产生的废矿物油等危险废物的容器和包装物未张贴危险废物识别标志的行为违反了《中华人民共和国固体废物污染环境防治法》第五十二条的规定，2019年11月11日，区生态环境局作出罚款的行政处罚，3个案件累计罚款4万元。"]
[75,"北京江南盛达厨房设备有限公司","专利授权（实用新型3件，0.3万元）","信用中国","经查询，该企业生产车间有一焊接工位正在作业,焊接过程中产生焊接废气,未安装废气处理设施的行为违反大气污染防治管理制度，2019年11月11日，区生态环境局作出罚款1万元的行政处罚。"]
[76,"北京恒晖伟业投资有限公司","专利授权（外观设计77件，7.7万元）","信用中国","经查询，该企业在生产过程中有实验室废液产生,该实验室废液在《国家危险废物名录》中类别为HW49,代码为900-047-49,未制定危险废物意外事故防范措施和应急预案的行为行为违反了《中华人民共和国固体废物污染环境防治法》第六十二条的规定，2020年9月21日，区生态环境局作出罚款1万元的行政处罚。"]
[77,"北京年管家信息科技有限公司","专利授权（发明1件，2万元）",null,"根据区税务局反馈结果，该企业2019年无缴税记录。"]
[78,"北京泽通科技开发有限公司","专利授权（发明1件，2万元）",null,"根据区税务局反馈结果，该企业2019年无缴税记录。"]
[79,"北京康爱瑞浩细胞技术有限公司","专利授权（发明1件，2万元）",null,"根据区税务局反馈结果，该企业2019年无缴税记录。"]
[80,"北京宏博亚泰电气设备有限公司","专利授权（实用新型2件，0.2万元）",null,"根据区税务局反馈结果，该企业2019年无缴税记录。"]